fUSD/lending_fUSD_20240730
["ID","MTS","AMOUNT","RATE_DAILY","PERIOD"]
[333676144,1722343840111,-2017.2,0.00010999,2]
[333676145,1722343840121,-2017.2,0.00010999,2]
[333676146,1722343840131,-2017.2,0.00010999,2]
[333676147,1722343840140,-2017.41632536,0.00010999,2]
[333676148,1722343840150,-500.0,0.00010999,2]
[333676149,1722343840159,-500.0,0.00010999,2]
[333676150,1722343840169,-500.0,0.00010999,2]
[333676151,1722343840178,-500.0,0.00010999,2]
[333676152,1722343840189,-500.0,0.00010999,2]
[333676153,1722343840198,-500.0,0.00010999,2]
[333676154,1722343840208,-2336.32,0.00010999,2]
[333676155,1722343840218,-500.0,0.00010999,2]
[333676156,1722343840227,-2336.32,0.00010999,2]
[333676157,1722343840237,-500.0,0.00010999,2]
[333676158,1722343840247,-2336.32,0.00010999,2]
[333676159,1722343840257,-500.0,0.00010999,2]
[333676160,1722343840267,-2336.32,0.00010999,2]
[333676161,1722343840276,-500.0,0.00010999,2]
[333676162,1722343840286,-500.0,0.00010999,2]
[333676163,1722343840297,-2336.32,0.00010999,2]
[333676164,1722343840307,-500.0,0.00010999,2]
[333676165,1722343840317,-2336.32,0.00010999,2]
[333676166,1722343840326,-500.0,0.00010999,2]
[333676167,1722343840335,-2336.32,0.00010999,2]
[333676168,1722343840346,-390.18809014,0.00010999,2]
[333676169,1722343840355,-2336.32,0.00010999,2]
[333676170,1722343840365,-2336.32,0.00010999,2]
[333676171,1722343840375,-2336.32,0.00010999,2]
[333676172,1722343840384,-2336.32,0.00010999,2]
[333676173,1722343840394,-2336.32,0.00010999,2]
[333676174,1722343840403,-2336.32,0.00010999,2]
[333676175,1722343840412,-2336.32,0.00010999,2]
[333676176,1722343840421,-2336.32,0.00010999,2]
[333676177,1722343840431,-2336.32,0.00010999,2]
[333676178,1722343840445,-2336.32,0.00010999,2]
[333676179,1722343840454,-2336.32,0.00010999,2]
[333676180,1722343840463,-2336.32,0.00010999,2]
[333676181,1722343840474,-2336.32,0.00010999,2]
[333676182,1722343840483,-2336.32,0.00010999,2]
[333676183,1722343840493,-2336.32,0.00010999,2]
[333676184,1722343840502,-2336.54,0.00010999,2]
[333676185,1722343840512,-500.0,0.00010999,2]
[333676186,1722343840522,-500.0,0.00010999,2]
[333676187,1722343840532,-500.0,0.00010999,2]
[333676188,1722343840542,-500.0,0.00010999,2]
[333676189,1722343840551,-500.0,0.00010999,2]
[333676190,1722343840561,-639.97605294,0.00010999,2]
[333676191,1722343840571,-500.0,0.00010999,2]
[333676192,1722343840581,-500.0,0.00010999,2]
[333676193,1722343840590,-500.0,0.00010999,2]
[333676194,1722343840601,-500.0,0.00010999,2]
[333676195,1722343840615,-500.0,0.00010999,2]
[333676196,1722343840624,-500.0,0.00010999,2]
[333676197,1722343840634,-500.0,0.00010999,2]
[333676198,1722343840644,-500.0,0.00010999,2]
[333676199,1722343840654,-500.0,0.00010999,2]
[333676200,1722343840664,-500.0,0.00010999,2]
[333676201,1722343840673,-500.0,0.00010999,2]
[333676202,1722343840683,-500.0,0.00010999,2]
[333676203,1722343840694,-500.0,0.00010999,2]
[333676204,1722343840704,-249.07873392,0.00010999,2]
[333676205,1722343840714,-807.36,0.00010999,2]
[333676206,1722343840723,-807.36,0.00010999,2]
[333676207,1722343840732,-807.36,0.00010999,2]
[333676208,1722343840742,-807.36,0.00010999,2]
[333676209,1722343840752,-807.36,0.00010999,2]
[333676210,1722343840761,-807.36,0.00010999,2]
[333676211,1722343840770,-807.36,0.00010999,2]
[333676212,1722343840780,-807.36,0.00010999,2]
[333676213,1722343840790,-807.36,0.00010999,2]
[333676214,1722343840801,-807.36,0.00010999,2]
[333676215,1722343840810,-807.36,0.00010999,2]
[333676216,1722343840820,-807.36,0.00010999,2]
[333676217,1722343840830,-807.36,0.00010999,2]
[333676218,1722343840840,-807.36,0.00010999,2]
[333676219,1722343840849,-807.36,0.00010999,2]
[333676220,1722343840859,-2000.0,0.00010999,2]
[333676221,1722343840869,-807.36,0.00010999,2]
[333676222,1722343840878,-807.36,0.00010999,2]
[333676223,1722343840888,-807.36,0.00010999,2]
[333676224,1722343840898,-807.36,0.00010999,2]
[333676225,1722343840908,-807.36,0.00010999,2]
[333676226,1722343840918,-807.36,0.00010999,2]
[333676227,1722343840928,-807.36,0.00010999,2]
[333676228,1722343840937,-807.43596739,0.00010999,2]
[333676229,1722343840947,-500.0,0.00010999,2]
[333676230,1722343840956,-500.0,0.00010999,2]
[333676231,1722343840966,-500.0,0.00010999,2]
[333676232,1722343840976,-500.0,0.00010999,2]
[333676233,1722343840986,-295.10611457,0.00010999,2]
[333676234,1722343840996,-500.0,0.00010999,2]
[333676235,1722343841008,-500.1437,0.00010999,2]
[333676236,1722343841017,-6471.96,0.00010999,2]
[333676237,1722343841027,-253.0,0.00011,2]
[333676238,1722343841037,-564752.63628032,0.00011,2]
[333676239,1722343841046,-150.0,0.00011,2]
[333676240,1722343841056,-1058810.02281961,0.00011,2]
[333676241,1722343841066,-824719.48722711,0.00011,2]
[333676242,1722343841075,-115262.81689636,0.00011,2]
[333676243,1722343841283,-2325.61555459,0.00011,2]
[333676244,1722343841295,-20270.69836658,0.00011,2]
[333676245,1722343841306,-370.12273123,0.00011,2]
[333676246,1722343841350,-5604.22868825,0.00011,2]
[333676247,1722343841361,-1568.29552831,0.00011,2]
[333676248,1722343841373,-17023.97019699,0.00011,2]
[333676249,1722343841385,-335.895,0.00011,2]
[333676250,1722343841397,-1479.06618087,0.00011,2]
[333676251,1722343841408,-1873.3,0.00011,2]
[333676252,1722343841419,-337.165,0.00011,2]
[333676253,1722343841432,-8999.62620331,0.00011,2]
[333676254,1722343841444,-870.142,0.00011,2]
[333676255,1722343841456,-774.46656194,0.00011,2]
[333676256,1722343841467,-959.41436398,0.00011,2]
[333676257,1722343841486,-334.18078022,0.00011,2]
[333676258,1722343841687,-601.29091091,0.00011,2]
[333676259,1722343841704,-4300.15412192,0.00011,2]
[333676260,1722343841719,-3705.05,0.00011,2]
[333676261,1722343841731,-722.19529931,0.00011,2]
[333676268,1722343843289,-1594.46534987,0.00011,2]
[333676269,1722343843410,-2810.59016537,0.00011,2]
[333676270,1722343843641,-377.11693109,0.00011,2]
[333676275,1722343848321,-5856.81037313,0.00011,2]
[333676276,1722343848498,-1801.23981175,0.00011,2]
[333676277,1722343848511,-841.21033007,0.00011,2]
[333676278,1722343848560,-859.71593629,0.00011,2]
[333676280,1722343994547,1000.0,0.00024932,120]
[333676281,1722344001323,500.0,0.00026999,120]
[333676290,1722344257614,2000.0,0.00024657,60]
[333676291,1722344303915,1000.0,0.00024657,60]
[333676292,1722344317356,2000.0,0.00027,120]
[333676293,1722344335265,1025.419447,0.00027,120]
[333676368,1722345031636,-616.93,8.219e-05,2]
[333676369,1722345031646,-150.0,9.888e-05,2]
[333676370,1722345031655,-196.56350179,9.888e-05,2]
[333676371,1722345031664,-1250.0,0.0001,2]
[333676372,1722345031674,-2268.86,0.0001007,2]
[333676373,1722345031683,-1000.0,0.00010087,2]
[333676374,1722345031692,-616.93,0.00010482,2]
[333676375,1722345031702,-1002.73574896,0.00010615,2]
[333676376,1722345031711,-300.0,0.00010898,2]
[333676377,1722345031721,-156.49663364,0.00010899,2]
[333676378,1722345031730,-156.49663361,0.00010899,2]
[333676379,1722345031739,-156.49663361,0.00010899,2]
[333676380,1722345031748,-156.49663361,0.00010899,2]
[333676381,1722345031757,-156.49663361,0.00010899,2]
[333676382,1722345031766,-156.49663361,0.00010899,2]
[333676383,1722345031776,-156.49663361,0.000109,2]
[333676384,1722345031785,-485.40005773,0.000109,2]
[333676385,1722345031795,-499.99,0.00010904,2]
[333676386,1722345031804,-220.13,0.00010904,3]
[333676387,1722345031813,-500.0,0.00010958,2]
[333676388,1722345031822,-500.0,0.00010958,2]
[333676389,1722345031831,-514.05,0.00010958,2]
[333676390,1722345031841,-500.0,0.00010958,2]
[333676391,1722345031850,-500.0,0.00010958,2]
[333676392,1722345031860,-2572.81,0.00010958,2]
[333676393,1722345031869,-2572.81,0.00010958,2]
[333676394,1722345031880,-2572.81,0.00010958,2]
[333676395,1722345031889,-2572.81,0.00010958,2]
[333676396,1722345031898,-170.34069888,0.00010958,2]
[333676397,1722345031908,-170.89114302,0.00010958,2]
[333676398,1722345031917,-500.0,0.00010958,2]
[333676399,1722345031926,-500.0,0.00010958,2]
[333676400,1722345031935,-500.0,0.00010958,2]
[333676401,1722345031944,-500.0,0.00010958,2]
[333676402,1722345031953,-500.0,0.00010958,2]
[333676403,1722345031962,-500.0,0.00010958,2]
[333676404,1722345031971,-500.0,0.00010958,2]
[333676405,1722345031981,-322.56152394,0.00010958,2]
[333676407,1722345031994,-154.0234322,0.00010958,2]
[333676409,1722345032003,-500.0,0.00010958,2]
[333676411,1722345032012,-500.0,0.00010958,2]
[333676413,1722345032021,-500.0,0.00010958,2]
[333676415,1722345032031,-500.0,0.00010958,2]
[333676417,1722345032040,-500.0,0.00010958,2]
[333676419,1722345032049,-500.0,0.00010958,2]
[333676421,1722345032058,-500.0,0.00010958,2]
[333676423,1722345032070,-500.0,0.00010958,2]
[333676426,1722345032080,-500.0,0.00010958,2]
[333676428,1722345032090,-500.0,0.00010958,2]
[333676430,1722345032099,-500.0,0.00010958,2]
[333676431,1722345032109,-535.4759653,0.00010958,2]
[333676432,1722345032119,-500.0,0.00010958,2]
[333676433,1722345032129,-181.37665611,0.00010958,2]
[333676443,1722345032337,-318.62334389,0.00010958,2]
[333676446,1722345032347,-500.0,0.00010958,2]
[333676448,1722345032357,-773.08,0.00010958,2]
[333676449,1722345032367,-773.08,0.00010958,2]
[333676451,1722345032378,-304.59468858,0.00010958,2]
[333676453,1722345032388,-300.0,0.00010958,2]
[333676455,1722345032399,-168.48531142,0.00010958,2]
[333676457,1722345032408,-419.15131658,0.00010958,2]
[333676460,1722345032427,-353.92868342,0.00010958,2]
[333676462,1722345032437,-500.0,0.00010958,2]
[333676464,1722345032448,-242.69610303,0.00010958,2]
[333676466,1722345032459,-257.30389697,0.00010958,2]
[333676468,1722345032469,-183.95088913,0.00010958,2]
[333676470,1722345032480,-316.04911087,0.00010958,2]
[333676472,1722345032491,-500.0,0.00010958,2]
[333676474,1722345032500,-500.0,0.00010958,2]
[333676476,1722345032510,-500.0,0.00010958,2]
[333676478,1722345032519,-500.0,0.00010958,2]
[333676480,1722345032528,-500.0,0.00010958,2]
[333676482,1722345032539,-500.0,0.00010958,2]
[333676484,1722345032549,-500.0,0.00010958,2]
[333676486,1722345032558,-500.0,0.00010958,2]
[333676488,1722345032567,-500.0,0.00010958,2]
[333676490,1722345032577,-500.0,0.00010958,2]
[333676492,1722345032586,-500.0,0.00010958,2]
[333676494,1722345032595,-500.0,0.00010958,2]
[333676496,1722345032605,-500.0,0.00010958,2]
[333676498,1722345032614,-500.0,0.00010958,2]
[333676499,1722345032623,-260.42346272,0.00010958,2]
[333676502,1722345032635,-239.57653728,0.00010958,2]
[333676504,1722345032644,-643.97007528,0.00010958,2]
[333676506,1722345032654,-636.03,0.00010958,2]
[333676508,1722345032663,-500.0,0.00010958,2]
[333676510,1722345032672,-500.0,0.00010958,2]
[333676512,1722345032683,-619.88652372,0.00010958,2]
[333676514,1722345032692,-298.84550232,0.00010958,2]
[333676516,1722345032701,-200.0,0.00010959,2]
[333676518,1722345032711,-250.0,0.00010959,2]
[333676520,1722345032720,-59653.828971,0.0001099,2]
[333676522,1722345032731,-1645.6850594,0.0001099,2]
[333676524,1722345032742,-484.32,0.0001099,2]
[333676526,1722345032753,-503.022718,0.0001099,2]
[333676528,1722345032764,-450.0,0.0001099,2]
[333676531,1722345032775,-187263.1432516,0.0001099,2]
[333676532,1722345032785,-313663.50646337,0.00010996,2]
[333676534,1722345032794,-2572.81,0.00010997,2]
[333676536,1722345032803,-505.24850308,0.00010997,2]
[333676538,1722345032812,-500.0,0.00010997,2]
[333676540,1722345032821,-500.0,0.00010997,2]
[333676542,1722345032830,-500.0,0.00010997,2]
[333676544,1722345032839,-773.08,0.00010997,2]
[333676546,1722345032849,-162.94297599,0.00010997,2]
[333676548,1722345032857,-500.0,0.00010997,2]
[333676549,1722345032867,-500.0,0.00010997,2]
[333676551,1722345032881,-500.0,0.00010997,2]
[333676553,1722345032890,-500.0,0.00010997,2]
[333676555,1722345032899,-500.0,0.00010997,2]
[333676557,1722345032909,-500.0,0.00010998,2]
[333676559,1722345032919,-2423.0782872,0.00010998,2]
[333676561,1722345032928,-5504.6928474,0.00010998,2]
[333676563,1722345032938,-6491.1073448,0.00010998,2]
[333676565,1722345032947,-500.0,0.00010999,2]
[333676567,1722345032956,-401.16454361,0.00010999,2]
[333676569,1722345032967,-2572.81,0.00010999,2]
[333676572,1722345032980,-2572.81,0.00010999,2]
[333676574,1722345032995,-2572.81,0.00010999,2]
[333676576,1722345033007,-2572.81,0.00010999,2]
[333676578,1722345033019,-2572.81,0.00010999,2]
[333676581,1722345033031,-2572.81,0.00010999,2]
[333676583,1722345033041,-2572.81,0.00010999,2]
[333676585,1722345033052,-2572.81,0.00010999,2]
[333676587,1722345033065,-2572.81,0.00010999,2]
[333676589,1722345033077,-2572.81,0.00010999,2]
[333676592,1722345033089,-2572.81,0.00010999,2]
[333676594,1722345033100,-572.20201526,0.00010999,2]
[333676596,1722345033115,-540.396828,0.00010999,2]
[333676599,1722345033131,-399.20391486,0.00010999,2]
[333676601,1722345033146,-1061.00724188,0.00010999,2]
[333676604,1722345033157,-2572.81,0.00010999,2]
[333676606,1722345033169,-2572.81,0.00010999,2]
[333676608,1722345033181,-112.29112006,0.00010999,2]
[333676610,1722345033196,-2460.51887994,0.00010999,2]
[333676612,1722345033208,-2572.81,0.00010999,2]
[333676614,1722345033219,-640.36112006,0.00010999,2]
[333677011,1722345037742,-1601.74737951,0.00010999,2]
[333677013,1722345037757,-330.70150043,0.00010999,2]
[333677016,1722345037768,-153.03404867,0.00010999,2]
[333677031,1722345037914,-401.05803429,0.00010999,2]
[333677038,1722345037972,-2018.71791704,0.00010999,2]
[333677040,1722345037985,-2573.04620329,0.00010999,2]
[333677043,1722345038000,-312.35199858,0.00010999,2]
[333677045,1722345038014,-1687.64800142,0.00010999,2]
[333677047,1722345038026,-500.0,0.00010999,2]
[333677050,1722345038040,-194.2006486,0.00010999,2]
[333677052,1722345038053,-305.7993514,0.00010999,2]
[333677054,1722345038063,-500.0,0.00010999,2]
[333677056,1722345038074,-500.0,0.00010999,2]
[333677058,1722345038085,-500.0,0.00010999,2]
[333677060,1722345038096,-500.0,0.00010999,2]
[333677062,1722345038107,-500.0,0.00010999,2]
[333677065,1722345038119,-353.0093,0.00010999,2]
[333677067,1722345038132,-500.0,0.00010999,2]
[333677069,1722345038143,-500.0,0.00010999,2]
[333677071,1722345038155,-500.0,0.00010999,2]
[333677073,1722345038166,-500.0,0.00010999,2]
[333677075,1722345038177,-500.0,0.00010999,2]
[333677078,1722345038187,-500.0,0.00010999,2]
[333677080,1722345038201,-500.0,0.00010999,2]
[333677082,1722345038212,-500.0,0.00010999,2]
[333677084,1722345038223,-500.0,0.00010999,2]
[333677087,1722345038236,-500.0,0.00010999,2]
[333677089,1722345038248,-500.0,0.00010999,2]
[333677091,1722345038259,-773.08,0.00010999,2]
[333677093,1722345038270,-500.0,0.00010999,2]
[333677095,1722345038281,-500.0,0.00010999,2]
[333677097,1722345038293,-773.08,0.00010999,2]
[333677099,1722345038303,-500.0,0.00010999,2]
[333677102,1722345038314,-773.08,0.00010999,2]
[333677104,1722345038328,-500.0,0.00010999,2]
[333677106,1722345038340,-773.08,0.00010999,2]
[333677108,1722345038352,-500.0,0.00010999,2]
[333677110,1722345038363,-773.08,0.00010999,2]
[333677112,1722345038374,-532.40234431,0.00010999,2]
[333677114,1722345038386,-773.08,0.00010999,2]
[333677117,1722345038397,-773.08,0.00010999,2]
[333677119,1722345038408,-773.08,0.00010999,2]
[333677121,1722345038419,-773.08,0.00010999,2]
[333677123,1722345038431,-773.08,0.00010999,2]
[333677125,1722345038441,-773.08,0.00010999,2]
[333677127,1722345038452,-773.08,0.00010999,2]
[333677129,1722345038463,-773.08,0.00010999,2]
[333677131,1722345038474,-773.08,0.00010999,2]
[333677133,1722345038485,-773.08,0.00010999,2]
[333677135,1722345038496,-773.08,0.00010999,2]
[333677137,1722345038507,-773.08,0.00010999,2]
[333677139,1722345038518,-773.08,0.00010999,2]
[333677142,1722345038529,-773.16,0.00010999,2]
[333677144,1722345038540,-500.0,0.00010999,2]
[333677146,1722345038551,-500.0,0.00010999,2]
[333677148,1722345038561,-500.0,0.00010999,2]
[333677150,1722345038572,-500.0,0.00010999,2]
[333677152,1722345038584,-500.0,0.00010999,2]
[333677154,1722345038594,-500.0,0.00010999,2]
[333677156,1722345038605,-396.83,0.00010999,2]
[333677159,1722345038616,-500.0,0.00010999,2]
[333677160,1722345038627,-500.0,0.00010999,2]
[333677162,1722345038639,-500.0,0.00010999,2]
[333677165,1722345038650,-500.0,0.00010999,2]
[333677167,1722345038661,-500.0,0.00010999,2]
[333677169,1722345038672,-500.0,0.00010999,2]
[333677171,1722345038682,-500.0,0.00010999,2]
[333677173,1722345038693,-500.0,0.00010999,2]
[333677175,1722345038704,-500.0,0.00010999,2]
[333677177,1722345038714,-500.0,0.00010999,2]
[333677179,1722345038724,-249.07874,0.00010999,2]
[333677182,1722345038735,-500.0,0.00010999,2]
[333677184,1722345038746,-500.0,0.00010999,2]
[333677186,1722345038757,-500.0,0.00010999,2]
[333677188,1722345038769,-500.0,0.00010999,2]
[333677190,1722345038779,-385.32007589,0.00010999,2]
[333677192,1722345038790,-2000.0,0.00010999,2]
[333677194,1722345038800,-500.0,0.00010999,2]
[333677196,1722345038811,-500.0,0.00010999,2]
[333677198,1722345038822,-500.0,0.00010999,2]
[333677201,1722345038833,-271.80500008,0.00010999,2]
[333677203,1722345038843,-500.0,0.00010999,2]
[333677205,1722345038854,-325.905,0.00010999,2]
[333677207,1722345038864,-500.0,0.00010999,2]
[333677209,1722345038875,-239.21,0.00010999,2]
[333677211,1722345038887,-557.44,0.00010999,2]
[333677213,1722345038897,-583.73,0.00010999,2]
[333677215,1722345038908,-500.0,0.00010999,2]
[333677218,1722345038920,-500.0,0.00010999,2]
[333677220,1722345038931,-500.0,0.00010999,2]
[333677222,1722345038941,-500.0,0.00010999,2]
[333677224,1722345038952,-500.0,0.00010999,2]
[333677226,1722345038963,-243.64,0.00010999,2]
[333677228,1722345038974,-500.0,0.00010999,2]
[333677230,1722345038985,-500.0,0.00010999,2]
[333677232,1722345039000,-500.0,0.00010999,2]
[333677234,1722345039010,-517.97,0.00010999,2]
[333677236,1722345039021,-500.3006642,0.00010999,2]
[333677238,1722345039033,-500.0,0.00010999,2]
[333677241,1722345039043,-500.0,0.00010999,2]
[333677242,1722345039054,-500.0,0.00010999,2]
[333677244,1722345039065,-500.0,0.00010999,2]
[333677246,1722345039076,-500.0,0.00010999,2]
[333677249,1722345039088,-500.0,0.00010999,2]
[333677251,1722345039099,-500.0,0.00010999,2]
[333677253,1722345039109,-500.0,0.00010999,2]
[333677255,1722345039120,-492.69489206,0.00010999,2]
[333677257,1722345039132,-258.24983503,0.00010999,2]
[333677259,1722345039142,-500.0,0.00010999,2]
[333677261,1722345039154,-505.40289568,0.00010999,2]
[333677263,1722345039165,-501.68596186,0.00010999,2]
[333677266,1722345039177,-500.0,0.00010999,2]
[333677268,1722345039188,-500.0,0.00010999,2]
[333677270,1722345039199,-500.0,0.00010999,2]
[333677272,1722345039209,-500.0,0.00010999,2]
[333677274,1722345039220,-501.96262989,0.00010999,2]
[333677276,1722345039231,-500.0,0.00010999,2]
[333677278,1722345039242,-500.0,0.00010999,2]
[333677280,1722345039253,-500.0,0.00010999,2]
[333677282,1722345039263,-570.47074753,0.00010999,2]
[333677284,1722345039274,-500.0,0.00010999,2]
[333677287,1722345039285,-500.0,0.00010999,2]
[333677289,1722345039296,-500.0,0.00010999,2]
[333677291,1722345039307,-500.0,0.00010999,2]
[333677293,1722345039318,-506.61965219,0.00010999,2]
[333677295,1722345039329,-500.0,0.00010999,2]
[333677297,1722345039340,-500.0,0.00010999,2]
[333677300,1722345039351,-500.0,0.00010999,2]
[333677302,1722345039361,-500.0,0.00010999,2]
[333677304,1722345039371,-500.0,0.00010999,2]
[333677306,1722345039383,-500.0,0.00010999,2]
[333677308,1722345039394,-500.0,0.00010999,2]
[333677310,1722345039405,-379.24,0.00010999,2]
[333677313,1722345039417,-506.1603998,0.00010999,2]
[333677315,1722345039428,-500.0,0.00010999,2]
[333677316,1722345039439,-500.0,0.00010999,2]
[333677317,1722345039450,-500.0,0.00010999,2]
[333677318,1722345039461,-501.48338811,0.00010999,2]
[333677319,1722345039472,-506.07582725,0.00010999,2]
[333677320,1722345039483,-510.21140469,0.00010999,2]
[333677321,1722345039494,-500.0,0.00010999,2]
[333677322,1722345039505,-500.0,0.00010999,2]
[333677323,1722345039516,-500.0,0.00010999,2]
[333677324,1722345039525,-500.0,0.00010999,2]
[333677325,1722345039535,-500.0,0.00010999,2]
[333677327,1722345039544,-500.0,0.00010999,2]
[333677329,1722345039555,-479.28337906,0.00010999,2]
[333677331,1722345039564,-6494.92,0.00010999,2]
[333677333,1722345039573,-500.0,0.00010999,2]
[333677335,1722345039583,-500.0,0.00010999,2]
[333677360,1722345039822,-500.0,0.00010999,2]
[333677363,1722345039835,-500.0,0.00010999,2]
[333677365,1722345039844,-500.0,0.00010999,2]
[333677367,1722345039853,-500.0,0.00010999,2]
[333677369,1722345039862,-500.0,0.00010999,2]
[333677371,1722345039871,-500.0,0.00010999,2]
[333677373,1722345039882,-500.0,0.00010999,2]
[333677374,1722345039891,-500.0,0.00010999,2]
[333677376,1722345039900,-500.0,0.00010999,2]
[333677378,1722345039909,-266.31494592,0.00010999,2]
[333677380,1722345039918,-500.0,0.00010999,2]
[333677382,1722345039928,-500.0,0.00010999,2]
[333677384,1722345039937,-500.0,0.00010999,2]
[333677386,1722345039946,-500.0,0.00010999,2]
[333677388,1722345039955,-500.0,0.00010999,2]
[333677390,1722345039965,-452.44249502,0.00010999,2]
[333677392,1722345039974,-500.0,0.00010999,2]
[333677394,1722345039983,-500.0,0.00010999,2]
[333677396,1722345039994,-500.0,0.00010999,2]
[333677398,1722345040005,-500.0,0.00010999,2]
[333677400,1722345040014,-500.0,0.00010999,2]
[333677402,1722345040023,-500.0,0.00010999,2]
[333677404,1722345040034,-500.0,0.00010999,2]
[333677406,1722345040044,-500.0,0.00010999,2]
[333677408,1722345040053,-500.0,0.00010999,2]
[333677410,1722345040062,-500.0,0.00010999,2]
[333677412,1722345040073,-500.0,0.00010999,2]
[333677414,1722345040083,-500.0,0.00010999,2]
[333677416,1722345040091,-500.0,0.00010999,2]
[333677418,1722345040101,-500.0,0.00010999,2]
[333677420,1722345040110,-500.0,0.00010999,2]
[333677422,1722345040118,-500.0,0.00010999,2]
[333677424,1722345040127,-500.0,0.00010999,2]
[333677426,1722345040139,-500.0,0.00010999,2]
[333677428,1722345040147,-578.81341074,0.00010999,2]
[333677430,1722345040156,-500.0,0.00010999,2]
[333677432,1722345040165,-246.66854677,0.00010999,2]
[333677434,1722345040174,-500.0,0.00010999,2]
[333677436,1722345040183,-500.0,0.00010999,2]
[333677438,1722345040192,-500.0,0.00010999,2]
[333677440,1722345040202,-500.0,0.00010999,2]
[333677442,1722345040211,-500.0,0.00010999,2]
[333677444,1722345040219,-500.0,0.00010999,2]
[333677446,1722345040229,-500.0,0.00010999,2]
[333677448,1722345040238,-500.0,0.00010999,2]
[333677449,1722345040247,-500.0,0.00010999,2]
[333677451,1722345040256,-500.0,0.00010999,2]
[333677453,1722345040266,-500.0,0.00010999,2]
[333677455,1722345040275,-500.0,0.00010999,2]
[333677457,1722345040285,-500.0,0.00010999,2]
[333677459,1722345040294,-500.0,0.00010999,2]
[333677461,1722345040303,-500.0,0.00010999,2]
[333677463,1722345040312,-500.0,0.00010999,2]
[333677465,1722345040321,-500.0,0.00010999,2]
[333677467,1722345040330,-454.20832584,0.00010999,2]
[333677469,1722345040340,-500.0,0.00010999,2]
[333677471,1722345040350,-500.0,0.00010999,2]
[333677473,1722345040359,-160.01275252,0.00010999,2]
[333677475,1722345040369,-500.0,0.00010999,2]
[333677477,1722345040380,-500.0,0.00010999,2]
[333677479,1722345040389,-500.0,0.00010999,2]
[333677480,1722345040399,-500.0,0.00010999,2]
[333677482,1722345040409,-500.0,0.00010999,2]
[333677484,1722345040418,-507.87483836,0.00010999,2]
[333677486,1722345040428,-500.0,0.00010999,2]
[333677488,1722345040438,-500.0,0.00010999,2]
[333677490,1722345040447,-498.528776,0.00010999,2]
[333677492,1722345040457,-500.0,0.00010999,2]
[333677495,1722345040470,-451.6739529,0.00010999,2]
[333677497,1722345040479,-500.0,0.00010999,2]
[333677498,1722345040489,-645.50250252,0.00010999,2]
[333677500,1722345040498,-500.0,0.00010999,2]
[333677502,1722345040507,-501.09149038,0.00010999,2]
[333677504,1722345040516,-500.0,0.00010999,2]
[333677506,1722345040525,-500.0,0.00010999,2]
[333677507,1722345040535,-500.0,0.00010999,2]
[333677509,1722345040544,-500.0,0.00010999,2]
[333677511,1722345040553,-500.0,0.00010999,2]
[333677513,1722345040562,-500.0,0.00010999,2]
[333677515,1722345040571,-500.0,0.00010999,2]
[333677517,1722345040582,-500.0,0.00010999,2]
[333677519,1722345040591,-500.0,0.00010999,2]